[Event "Late-Titled-Tuesday-Blitz-May-07-2024"]
[Site "Chess.com"]
[Date "2024.05.07"]
[Round "4"]
[White "ChessicallyInclined"]
[Black "MathiasWomacka"]
[Result "1-0"]
[WhiteElo "2733"]
[BlackElo "2541"]
[TimeControl "180+1"]
[EndTime "14:38:16 PDT"]
[Termination "ChessicallyInclined won by resignation"]

1. e4 {[%clk 0:03:00.9]} 1... c5 {[%clk 0:02:59.5]} 2. Nf3 {[%clk 0:03:01.4]}
2... d6 {[%clk 0:02:59.5]} 3. d4 {[%clk 0:03:02]} 3... cxd4 {[%clk 0:02:59.9]}
4. Nxd4 {[%clk 0:03:02.9]} 4... Nf6 {[%clk 0:02:59.5]} 5. Nc3 {[%clk 0:03:03.5]}
5... a6 {[%clk 0:02:59.7]} 6. Be2 {[%clk 0:03:04]} 6... e5 {[%clk 0:02:59.4]} 7.
Nb3 {[%clk 0:03:04.5]} 7... Be7 {[%clk 0:02:59.6]} 8. Be3 {[%clk 0:03:05]} 8...
Be6 {[%clk 0:02:58.3]} 9. Nd5 {[%clk 0:03:04.4]} 9... Nxd5 {[%clk 0:02:55.9]}
10. exd5 {[%clk 0:03:04.6]} 10... Bf5 {[%clk 0:02:56.4]} 11. O-O {[%clk
0:03:04.7]} 11... O-O {[%clk 0:02:56.1]} 12. c4 {[%clk 0:03:05]} 12... Nd7
{[%clk 0:02:55.1]} 13. f4 {[%clk 0:03:05.6]} 13... exf4 {[%clk 0:02:39.6]} 14.
Bxf4 {[%clk 0:03:05.8]} 14... Bg6 {[%clk 0:02:35.5]} 15. Qd2 {[%clk 0:03:02.9]}
15... Bf6 {[%clk 0:02:14.8]} 16. Bxd6 {[%clk 0:02:54.9]} 16... Re8 {[%clk
0:02:07.7]} 17. c5 {[%clk 0:02:48.6]} 17... Ne5 {[%clk 0:01:56.2]} 18. Rae1
{[%clk 0:02:32.7]} 18... b6 {[%clk 0:01:53.9]} 19. Kh1 {[%clk 0:02:03.8]} 19...
bxc5 {[%clk 0:01:50.9]} 20. Bxc5 {[%clk 0:02:04.7]} 20... a5 {[%clk 0:01:42.8]}
21. Bb5 {[%clk 0:02:02.3]} 21... a4 {[%clk 0:01:37.5]} 22. Nc1 {[%clk
0:01:49.2]} 22... Ra5 {[%clk 0:01:27.3]} 23. Bxe8 {[%clk 0:01:22.2]} 23... Rxc5
{[%clk 0:01:26.5]} 24. Bxa4 {[%clk 0:01:22.8]} 24... Rxd5 {[%clk 0:01:23.1]} 25.
Qe3 {[%clk 0:01:16.9]} 25... h6 {[%clk 0:01:15.9]} 26. Bb3 {[%clk 0:01:15.8]}
26... Rd2 {[%clk 0:01:15.2]} 27. Re2 {[%clk 0:01:11.4]} 27... Rxe2 {[%clk
0:01:01.8]} 28. Nxe2 {[%clk 0:01:12.3]} 28... Qd6 {[%clk 0:00:23.8]} 29. Nf4
{[%clk 0:00:57.5]} 29... Bg5 {[%clk 0:00:23.4]} 30. Qg3 {[%clk 0:00:50.6]} 30...
Bxf4 {[%clk 0:00:17.9]} 31. Qxf4 {[%clk 0:00:49.9]} 31... Kh7 {[%clk 0:00:16.1]}
32. h3 {[%clk 0:00:45.3]} 32... Qc5 {[%clk 0:00:15.1]} 33. Rc1 {[%clk
0:00:38.5]} 33... Qb6 {[%clk 0:00:13.4]} 34. Qxe5 {[%clk 0:00:34.6]} 1-0

[Event "Late-Titled-Tuesday-Blitz-May-07-2024"]
[Site "Chess.com"]
[Date "2024.05.07"]
[Round "4"]
[White "Romadk"]
[Black "Pig-filth"]
[Result "0-1"]
[WhiteElo "2504"]
[BlackElo "2324"]
[TimeControl "180+1"]
[EndTime "14:38:16 PDT"]
[Termination "Pig-filth won by resignation"]

1. d4 {[%clk 0:03:00.9]} 1... Nc6 {[%clk 0:02:59.7]} 2. Nf3 {[%clk 0:02:57.1]}
2... d6 {[%clk 0:02:58.7]} 3. c4 {[%clk 0:02:54.8]} 3... e5 {[%clk 0:02:54.8]}
4. e3 {[%clk 0:02:53.3]} 4... exd4 {[%clk 0:02:50.8]} 5. exd4 {[%clk 0:02:54.2]}
5... Nf6 {[%clk 0:02:51.5]} 6. h3 {[%clk 0:02:51.8]} 6... d5 {[%clk 0:02:51.4]}
7. c5 {[%clk 0:02:50.5]} 7... Be7 {[%clk 0:02:48.3]} 8. Nc3 {[%clk 0:02:49.2]}
8... O-O {[%clk 0:02:48.8]} 9. Bd3 {[%clk 0:02:45.3]} 9... b6 {[%clk 0:02:37.7]}
10. cxb6 {[%clk 0:02:37.5]} 10... axb6 {[%clk 0:02:38.6]} 11. O-O {[%clk
0:02:37.2]} 11... h6 {[%clk 0:02:34.7]} 12. Bf4 {[%clk 0:02:36.6]} 12... Bd6
{[%clk 0:02:26.6]} 13. Be5 {[%clk 0:02:22.5]} 13... Re8 {[%clk 0:02:16.1]} 14.
Re1 {[%clk 0:02:21.3]} 14... Bb7 {[%clk 0:02:01.5]} 15. Bxf6 {[%clk 0:02:16]}
15... Qxf6 {[%clk 0:02:00.1]} 16. Nxd5 {[%clk 0:02:15.8]} 16... Rxe1+ {[%clk
0:01:59.3]} 17. Qxe1 {[%clk 0:02:15.4]} 17... Qd8 {[%clk 0:01:49.1]} 18. Qe4
{[%clk 0:02:09.7]} 18... g6 {[%clk 0:01:44.6]} 19. Qg4 {[%clk 0:02:01.1]} 19...
Kh7 {[%clk 0:01:25.7]} 20. h4 {[%clk 0:01:44.2]} 20... Nxd4 {[%clk 0:01:23.9]}
21. Nxd4 {[%clk 0:01:28.1]} 21... Bxd5 {[%clk 0:01:22.9]} 22. h5 {[%clk
0:01:28]} 22... Qf6 {[%clk 0:01:05.6]} 23. a3 {[%clk 0:01:20.1]} 23... Rd8
{[%clk 0:00:48.1]} 24. Re1 {[%clk 0:01:00.6]} 24... Bc5 {[%clk 0:00:40.2]} 25.
hxg6+ {[%clk 0:00:51.6]} 25... fxg6 {[%clk 0:00:41.1]} 26. Nf3 {[%clk
0:00:19.2]} 26... Bxf3 {[%clk 0:00:40.8]} 27. Bxg6+ {[%clk 0:00:14.7]} 27...
Qxg6 {[%clk 0:00:39.2]} 28. Qxf3 {[%clk 0:00:14.5]} 28... Rf8 {[%clk 0:00:34.4]}
29. Qc3 {[%clk 0:00:11.1]} 29... Bxf2+ {[%clk 0:00:34.3]} 30. Kh2 {[%clk
0:00:11.9]} 30... Bxe1 {[%clk 0:00:34.5]} 0-1

[Event "Late-Titled-Tuesday-Blitz-May-07-2024"]
[Site "Chess.com"]
[Date "2024.05.07"]
[Round "4"]
[White "NaciSAN"]
[Black "imdvb6307"]
[Result "0-1"]
[WhiteElo "2297"]
[BlackElo "2501"]
[TimeControl "180+1"]
[EndTime "14:38:18 PDT"]
[Termination "imdvb6307 won by resignation"]

1. e4 {[%clk 0:03:00]} 1... Nc6 {[%clk 0:02:58.1]} 2. Nf3 {[%clk 0:02:59.4]}
2... d6 {[%clk 0:02:58.1]} 3. d4 {[%clk 0:02:58.9]} 3... Nf6 {[%clk 0:02:58.2]}
4. Nc3 {[%clk 0:02:58.3]} 4... Bg4 {[%clk 0:02:58.4]} 5. Be2 {[%clk 0:02:56.7]}
5... e5 {[%clk 0:02:57.7]} 6. d5 {[%clk 0:02:56]} 6... Ne7 {[%clk 0:02:57.3]} 7.
Nh4 {[%clk 0:02:54.1]} 7... Bd7 {[%clk 0:02:55.5]} 8. O-O {[%clk 0:02:53.4]}
8... g6 {[%clk 0:02:54.7]} 9. Be3 {[%clk 0:02:51.3]} 9... Bg7 {[%clk 0:02:52.1]}
10. Nf3 {[%clk 0:02:44.8]} 10... O-O {[%clk 0:02:40.5]} 11. Ne1 {[%clk
0:02:39.4]} 11... c6 {[%clk 0:02:38.7]} 12. dxc6 {[%clk 0:02:37.1]} 12... Bxc6
{[%clk 0:02:38.6]} 13. f3 {[%clk 0:02:33.8]} 13... d5 {[%clk 0:02:38.6]} 14.
exd5 {[%clk 0:02:33.8]} 14... Nfxd5 {[%clk 0:02:31.9]} 15. Nxd5 {[%clk
0:02:33.6]} 15... Nxd5 {[%clk 0:02:29.2]} 16. Bf2 {[%clk 0:02:33.6]} 16... Bh6
{[%clk 0:02:15.7]} 17. Nd3 {[%clk 0:02:27.8]} 17... Ne3 {[%clk 0:02:14.9]} 18.
Bxe3 {[%clk 0:02:25.4]} 18... Bxe3+ {[%clk 0:02:14.9]} 19. Kh1 {[%clk
0:02:25.6]} 19... Qd6 {[%clk 0:02:00.7]} 20. c3 {[%clk 0:02:19]} 20... Rad8
{[%clk 0:01:58]} 21. Nb4 {[%clk 0:02:18.3]} 21... Qxd1 {[%clk 0:01:48.5]} 22.
Raxd1 {[%clk 0:02:19.2]} 22... Bd7 {[%clk 0:01:19.2]} 23. Nd5 {[%clk 0:02:17.4]}
23... Bg5 {[%clk 0:01:18]} 24. Bc4 {[%clk 0:02:12.6]} 24... a5 {[%clk
0:01:10.9]} 25. Nb6 {[%clk 0:02:06.9]} 25... Bf5 {[%clk 0:01:00.9]} 26. Bd5
{[%clk 0:02:05.8]} 26... Be3 {[%clk 0:00:54.3]} 27. Nc4 {[%clk 0:02:02.4]} 27...
Bc5 {[%clk 0:00:45.8]} 28. Bxb7 {[%clk 0:01:55.9]} 28... Bd3 {[%clk 0:00:44]}
29. Nxe5 {[%clk 0:01:45.6]} 29... Bxf1 {[%clk 0:00:43.9]} 30. Rxf1 {[%clk
0:01:46.5]} 30... Rd2 {[%clk 0:00:42.9]} 31. Nc4 {[%clk 0:01:44.7]} 31... Re2
{[%clk 0:00:41.9]} 32. a3 {[%clk 0:01:37.7]} 32... Rfe8 {[%clk 0:00:38]} 33. b4
{[%clk 0:01:36.3]} 33... Re1 {[%clk 0:00:24.9]} 34. Nd2 {[%clk 0:01:23.8]} 34...
Rxf1+ {[%clk 0:00:24.3]} 35. Nxf1 {[%clk 0:01:24.7]} 35... Re1 {[%clk
0:00:24.6]} 36. Ba6 {[%clk 0:01:25.1]} 36... Bb6 {[%clk 0:00:24.9]} 37. g3
{[%clk 0:01:21]} 37... Rc1 {[%clk 0:00:24.2]} 38. bxa5 {[%clk 0:01:13.2]} 38...
Bxa5 {[%clk 0:00:23.5]} 39. Kg2 {[%clk 0:01:12.7]} 39... Rc2+ {[%clk 0:00:23.2]}
40. Kh3 {[%clk 0:01:11.8]} 40... Rxc3 {[%clk 0:00:23.4]} 41. a4 {[%clk
0:01:11.8]} 41... Rxf3 {[%clk 0:00:22.7]} 42. Bb5 {[%clk 0:01:09.1]} 42... Kg7
{[%clk 0:00:21.2]} 43. Kg2 {[%clk 0:01:08.4]} 43... Rc3 {[%clk 0:00:19.7]} 44.
h4 {[%clk 0:01:04.4]} 44... Rc2+ {[%clk 0:00:19.7]} 45. Kf3 {[%clk 0:01:03]}
45... Bb6 {[%clk 0:00:20]} 46. Ne3 {[%clk 0:01:02.6]} 46... Rc3 {[%clk 0:00:20]}
0-1

[Event "Late-Titled-Tuesday-Blitz-May-07-2024"]
[Site "Chess.com"]
[Date "2024.05.07"]
[Round "4"]
[White "chess_sharparchitect"]
[Black "ozates"]
[Result "0-1"]
[WhiteElo "2291"]
[BlackElo "2655"]
[TimeControl "180+1"]
[EndTime "14:38:19 PDT"]
[Termination "ozates won by resignation"]

1. c4 {[%clk 0:03:00.9]} 1... c5 {[%clk 0:02:59.6]} 2. Nf3 {[%clk 0:03:00.3]}
2... Nc6 {[%clk 0:03:00.1]} 3. Nc3 {[%clk 0:03:00.5]} 3... e5 {[%clk 0:02:59.1]}
4. e3 {[%clk 0:03:01]} 4... Nf6 {[%clk 0:02:58.8]} 5. d4 {[%clk 0:03:01.2]} 5...
cxd4 {[%clk 0:02:59.7]} 6. exd4 {[%clk 0:03:01.5]} 6... e4 {[%clk 0:03:00.4]} 7.
Ne5 {[%clk 0:02:48.3]} 7... Bb4 {[%clk 0:02:59.7]} 8. Nxc6 {[%clk 0:02:37.7]}
8... dxc6 {[%clk 0:02:58.2]} 9. Be3 {[%clk 0:02:33.1]} 9... Ng4 {[%clk
0:02:55.1]} 10. Qb3 {[%clk 0:02:20.2]} 10... a5 {[%clk 0:02:46.8]} 11. a3 {[%clk
0:02:15]} 11... Nxe3 {[%clk 0:02:34.3]} 12. fxe3 {[%clk 0:02:11.3]} 12... Bxc3+
{[%clk 0:02:26.1]} 13. Qxc3 {[%clk 0:02:12.2]} 13... Bg4 {[%clk 0:02:25.3]} 14.
Qc2 {[%clk 0:01:58.2]} 14... Qh4+ {[%clk 0:02:23.5]} 15. g3 {[%clk 0:01:40]}
15... Qg5 {[%clk 0:02:22.6]} 16. Qxe4+ {[%clk 0:01:20.5]} 16... Kd8 {[%clk
0:02:18.7]} 17. Qf4 {[%clk 0:01:10.4]} 17... Qg6 {[%clk 0:02:11.4]} 18. Bg2
{[%clk 0:01:01.1]} 18... Re8 {[%clk 0:02:06.1]} 19. O-O {[%clk 0:01:00.5]} 19...
Re7 {[%clk 0:01:55.4]} 20. e4 {[%clk 0:00:59.4]} 20... Be2 {[%clk 0:01:51.6]}
21. Rf2 {[%clk 0:00:53.3]} 21... Bxc4 {[%clk 0:01:51.2]} 22. Rc1 {[%clk
0:00:39.6]} 22... Bd3 {[%clk 0:01:42]} 23. d5 {[%clk 0:00:32.5]} 23... Bxe4
{[%clk 0:01:38.4]} 24. dxc6 {[%clk 0:00:29.2]} 24... bxc6 {[%clk 0:01:35.3]} 25.
Rd1+ {[%clk 0:00:14.6]} 25... Ke8 {[%clk 0:01:33.2]} 26. Qd2 {[%clk 0:00:07.5]}
26... Kf8 {[%clk 0:01:16]} 27. Re2 {[%clk 0:00:07.9]} 27... Rae8 {[%clk
0:01:08.8]} 28. Qd4 {[%clk 0:00:06.9]} 28... Bxg2 {[%clk 0:01:04.5]} 29. Rxe7
{[%clk 0:00:05.6]} 29... Rxe7 {[%clk 0:01:02.7]} 30. Kxg2 {[%clk 0:00:04.6]}
30... Qh5 {[%clk 0:00:39.4]} 31. Qd8+ {[%clk 0:00:04.2]} 31... Re8 {[%clk
0:00:40]} 32. Qd2 {[%clk 0:00:03.2]} 32... Re2+ {[%clk 0:00:39.6]} 0-1

[Event "Late-Titled-Tuesday-Blitz-May-07-2024"]
[Site "Chess.com"]
[Date "2024.05.07"]
[Round "4"]
[White "Romkachess"]
[Black "stollenmonster"]
[Result "0-1"]
[WhiteElo "2612"]
[BlackElo "2866"]
[TimeControl "180+1"]
[EndTime "14:38:23 PDT"]
[Termination "stollenmonster won by resignation"]

1. e4 {[%clk 0:02:50.1]} 1... c5 {[%clk 0:03:00]} 2. Nf3 {[%clk 0:02:45.8]} 2...
Nf6 {[%clk 0:03:00.5]} 3. e5 {[%clk 0:02:46.2]} 3... Nd5 {[%clk 0:03:01.1]} 4.
Nc3 {[%clk 0:02:46.7]} 4... e6 {[%clk 0:03:01.6]} 5. Bc4 {[%clk 0:02:46.3]} 5...
Nb6 {[%clk 0:02:59.8]} 6. Be2 {[%clk 0:02:41.4]} 6... Nc6 {[%clk 0:03:00.3]} 7.
O-O {[%clk 0:02:38.5]} 7... d5 {[%clk 0:03:00.9]} 8. exd6 {[%clk 0:02:38.5]}
8... Bxd6 {[%clk 0:03:01.5]} 9. Nb5 {[%clk 0:02:35.7]} 9... e5 {[%clk
0:03:00.4]} 10. Nxd6+ {[%clk 0:02:34.3]} 10... Qxd6 {[%clk 0:03:01.3]} 11. d3
{[%clk 0:02:33.4]} 11... O-O {[%clk 0:03:01.4]} 12. b3 {[%clk 0:02:09.1]} 12...
Nd5 {[%clk 0:03:01]} 13. Bb2 {[%clk 0:02:08.3]} 13... Nf4 {[%clk 0:02:59.8]} 14.
Nd2 {[%clk 0:02:04.6]} 14... Re8 {[%clk 0:02:52.5]} 15. Nc4 {[%clk 0:01:56.4]}
15... Qc7 {[%clk 0:02:52.4]} 16. a4 {[%clk 0:01:54.6]} 16... b6 {[%clk
0:02:48.3]} 17. Bf3 {[%clk 0:01:54.5]} 17... Bb7 {[%clk 0:02:48.8]} 18. Re1
{[%clk 0:01:52.3]} 18... f6 {[%clk 0:02:44.2]} 19. g3 {[%clk 0:01:45.7]} 19...
Nh3+ {[%clk 0:02:43.6]} 20. Kg2 {[%clk 0:01:45.7]} 20... Ng5 {[%clk 0:02:43.8]}
21. Bd5+ {[%clk 0:01:45.9]} 21... Kh8 {[%clk 0:02:43.7]} 22. h4 {[%clk
0:01:46.1]} 22... Nd4 {[%clk 0:02:44]} 23. Ne3 {[%clk 0:01:35.8]} 23... Ngf3
{[%clk 0:02:26.9]} 24. Rh1 {[%clk 0:01:18]} 24... Rad8 {[%clk 0:02:27.4]} 25. c4
{[%clk 0:01:17.7]} 25... f5 {[%clk 0:02:23.2]} 26. Bxd4 {[%clk 0:01:03.1]} 26...
Nxd4 {[%clk 0:02:24.1]} 27. Re1 {[%clk 0:00:46.8]} 27... f4 {[%clk 0:02:19.6]}
28. Bxb7 {[%clk 0:00:46.5]} 28... Qxb7+ {[%clk 0:02:15]} 29. Nd5 {[%clk
0:00:46.6]} 29... Rxd5 {[%clk 0:02:15.5]} 30. cxd5 {[%clk 0:00:46.8]} 30...
Qxd5+ {[%clk 0:02:16.3]} 31. Re4 {[%clk 0:00:47.1]} 31... fxg3 {[%clk
0:02:02.7]} 32. Qh5 {[%clk 0:00:41]} 32... Rf8 {[%clk 0:01:59.4]} 33. fxg3
{[%clk 0:00:34.1]} 33... Nf5 {[%clk 0:01:54.6]} 34. Kh3 {[%clk 0:00:18.1]} 34...
Qxd3 {[%clk 0:01:50.9]} 35. Qg4 {[%clk 0:00:09.9]} 35... Nxg3 {[%clk 0:01:38.7]}
36. Rd1 {[%clk 0:00:04.3]} 36... Qxe4 {[%clk 0:01:32.3]} 37. Kxg3 {[%clk
0:00:04.6]} 37... Qe3+ {[%clk 0:01:31.6]} 38. Kh2 {[%clk 0:00:03.3]} 38... h6
{[%clk 0:01:27.8]} 39. Kg2 {[%clk 0:00:03.5]} 39... e4 {[%clk 0:01:21.9]} 40. h5
{[%clk 0:00:03.1]} 40... Qxb3 {[%clk 0:01:16.9]} 41. Rd7 {[%clk 0:00:02.7]}
41... Qf3+ {[%clk 0:01:16.1]} 42. Qxf3 {[%clk 0:00:03.1]} 42... exf3+ {[%clk
0:01:16.8]} 43. Kf2 {[%clk 0:00:03.6]} 43... a6 {[%clk 0:01:14.7]} 44. Rb7
{[%clk 0:00:03.9]} 44... Rf6 {[%clk 0:01:14.3]} 45. Rb8+ {[%clk 0:00:03.6]}
45... Kh7 {[%clk 0:01:13.8]} 46. Ra8 {[%clk 0:00:04.5]} 46... a5 {[%clk
0:01:12.6]} 47. Rb8 {[%clk 0:00:04.6]} 47... g6 {[%clk 0:01:12.3]} 48. hxg6+
{[%clk 0:00:04.4]} 48... Kxg6 {[%clk 0:01:12]} 49. Rg8+ {[%clk 0:00:03.9]} 49...
Kh5 {[%clk 0:01:09.9]} 0-1

[Event "Late-Titled-Tuesday-Blitz-May-07-2024"]
[Site "Chess.com"]
[Date "2024.05.07"]
[Round "4"]
[White "Mbneu"]
[Black "Alexei_Gubajdullin"]
[Result "0-1"]
[WhiteElo "2223"]
[BlackElo "2556"]
[TimeControl "180+1"]
[EndTime "14:38:27 PDT"]
[Termination "Alexei_Gubajdullin won by resignation"]

1. d4 {[%clk 0:02:54]} 1... Nf6 {[%clk 0:02:58.5]} 2. c4 {[%clk 0:02:52.9]} 2...
g6 {[%clk 0:02:29.1]} 3. Nc3 {[%clk 0:02:51.2]} 3... Bg7 {[%clk 0:02:22]} 4. e4
{[%clk 0:02:50]} 4... d6 {[%clk 0:02:08.2]} 5. f4 {[%clk 0:02:50.2]} 5... O-O
{[%clk 0:02:04.3]} 6. Nf3 {[%clk 0:02:48.9]} 6... c5 {[%clk 0:02:04.2]} 7. d5
{[%clk 0:02:48.9]} 7... e6 {[%clk 0:02:03.8]} 8. Be2 {[%clk 0:02:49.2]} 8...
exd5 {[%clk 0:02:03.5]} 9. cxd5 {[%clk 0:02:50.1]} 9... Re8 {[%clk 0:02:03.4]}
10. e5 {[%clk 0:02:49.5]} 10... dxe5 {[%clk 0:02:03.3]} 11. fxe5 {[%clk
0:02:49.4]} 11... Ng4 {[%clk 0:02:03.3]} 12. e6 {[%clk 0:02:49.8]} 12... fxe6
{[%clk 0:02:03.2]} 13. Bg5 {[%clk 0:02:48.2]} 13... Qb6 {[%clk 0:02:02.3]} 14.
Qd2 {[%clk 0:02:47.1]} 14... c4 {[%clk 0:01:59.8]} 15. O-O-O {[%clk 0:02:45.7]}
15... h6 {[%clk 0:01:59.1]} 16. Bf4 {[%clk 0:02:32.8]} 16... g5 {[%clk
0:01:58.5]} 17. Bg3 {[%clk 0:02:27]} 17... Qa6 {[%clk 0:01:39.7]} 18. h3 {[%clk
0:02:18.4]} 18... Nf6 {[%clk 0:01:39.2]} 19. Be5 {[%clk 0:02:06.6]} 19... b5
{[%clk 0:01:36.5]} 20. Nxg5 {[%clk 0:01:49.9]} 20... hxg5 {[%clk 0:01:32.6]} 21.
Qxg5 {[%clk 0:01:48.6]} 21... Nbd7 {[%clk 0:01:32.4]} 22. Bh5 {[%clk 0:01:35.6]}
22... Nxe5 {[%clk 0:01:27.4]} 23. Bxe8 {[%clk 0:01:32.8]} 23... Nxe8 {[%clk
0:01:21.7]} 24. Qd8 {[%clk 0:01:25.6]} 24... Bb7 {[%clk 0:01:20.4]} 25. Qe7
{[%clk 0:01:19.6]} 25... exd5 {[%clk 0:01:10.1]} 26. Rhe1 {[%clk 0:01:06.9]}
26... b4 {[%clk 0:00:36.6]} 27. Nxd5 {[%clk 0:00:25.4]} 27... Nd3+ {[%clk
0:00:29.1]} 28. Rxd3 {[%clk 0:00:23.8]} 28... cxd3 {[%clk 0:00:28.9]} 29. Re6
{[%clk 0:00:13.7]} 29... Qc4+ {[%clk 0:00:26.9]} 30. Kb1 {[%clk 0:00:10.3]}
30... Qc2+ {[%clk 0:00:26.3]} 0-1

[Event "Late-Titled-Tuesday-Blitz-May-07-2024"]
[Site "Chess.com"]
[Date "2024.05.07"]
[Round "4"]
[White "ChristopherYoo"]
[Black "deathadder96"]
[Result "1-0"]
[WhiteElo "3003"]
[BlackElo "2850"]
[TimeControl "180+1"]
[EndTime "14:38:28 PDT"]
[Termination "ChristopherYoo won by checkmate"]

1. e4 {[%clk 0:03:00.9]} 1... e6 {[%clk 0:02:59.7]} 2. d4 {[%clk 0:02:59.2]}
2... d5 {[%clk 0:03:00.2]} 3. e5 {[%clk 0:02:59.7]} 3... c5 {[%clk 0:03:00.4]}
4. c3 {[%clk 0:03:00]} 4... Nc6 {[%clk 0:03:01.1]} 5. Nf3 {[%clk 0:03:00.1]}
5... Bd7 {[%clk 0:03:01.8]} 6. Bd3 {[%clk 0:02:59.9]} 6... Rc8 {[%clk
0:02:58.3]} 7. O-O {[%clk 0:02:59.6]} 7... cxd4 {[%clk 0:02:58.6]} 8. Re1 {[%clk
0:02:57.8]} 8... dxc3 {[%clk 0:02:56.6]} 9. Nxc3 {[%clk 0:02:57.1]} 9... a6
{[%clk 0:02:55.4]} 10. h4 {[%clk 0:02:53.7]} 10... h6 {[%clk 0:02:55.5]} 11. h5
{[%clk 0:02:53.3]} 11... Bc5 {[%clk 0:02:49.3]} 12. Bf4 {[%clk 0:02:50.3]} 12...
Nge7 {[%clk 0:02:49.4]} 13. Rc1 {[%clk 0:02:43.2]} 13... Ba7 {[%clk 0:02:49]}
14. Qd2 {[%clk 0:02:41.6]} 14... b5 {[%clk 0:02:38.9]} 15. Ne2 {[%clk
0:02:37.9]} 15... Qa5 {[%clk 0:02:27.1]} 16. Rc3 {[%clk 0:02:21.3]} 16... Rd8
{[%clk 0:01:57.7]} 17. Rec1 {[%clk 0:01:20.3]} 17... d4 {[%clk 0:01:53]} 18. Ra3
{[%clk 0:01:19.5]} 18... Qxd2 {[%clk 0:01:34.9]} 19. Bxd2 {[%clk 0:01:20.4]}
19... Bc8 {[%clk 0:01:34.5]} 20. Be4 {[%clk 0:01:17.9]} 20... Bb7 {[%clk
0:01:33.5]} 21. Nf4 {[%clk 0:01:06.8]} 21... O-O {[%clk 0:01:04.7]} 22. Nd3
{[%clk 0:01:05.7]} 22... Rb8 {[%clk 0:00:45.4]} 23. Nc5 {[%clk 0:00:59.9]} 23...
Bxc5 {[%clk 0:00:45.8]} 24. Rxc5 {[%clk 0:01:00.8]} 24... Rfd8 {[%clk
0:00:38.1]} 25. g4 {[%clk 0:00:48.4]} 25... Rd7 {[%clk 0:00:26.5]} 26. g5 {[%clk
0:00:47.5]} 26... hxg5 {[%clk 0:00:26]} 27. Nxg5 {[%clk 0:00:48.4]} 27... Nd8
{[%clk 0:00:21.3]} 28. Rg3 {[%clk 0:00:40.6]} 28... Bxe4 {[%clk 0:00:15.6]} 29.
Nxe4 {[%clk 0:00:40.4]} 29... Kf8 {[%clk 0:00:11.6]} 30. h6 {[%clk 0:00:38.9]}
30... Ng6 {[%clk 0:00:08.6]} 31. h7 {[%clk 0:00:36.9]} 31... Nb7 {[%clk
0:00:07]} 32. Rxg6 {[%clk 0:00:34.9]} 32... Ke7 {[%clk 0:00:07.5]} 33. Bg5+
{[%clk 0:00:34.9]} 33... f6 {[%clk 0:00:07.2]} 34. Rxg7+ {[%clk 0:00:34.5]}
34... Kf8 {[%clk 0:00:07.3]} 35. h8=Q# {[%clk 0:00:34.4]} 1-0

[Event "Late-Titled-Tuesday-Blitz-May-07-2024"]
[Site "Chess.com"]
[Date "2024.05.07"]
[Round "4"]
[White "mishanick"]
[Black "eljanov"]
[Result "1-0"]
[WhiteElo "3052"]
[BlackElo "2870"]
[TimeControl "180+1"]
[EndTime "14:38:29 PDT"]
[Termination "mishanick won by resignation"]

1. d4 {[%clk 0:03:00.9]} 1... Nf6 {[%clk 0:03:00.1]} 2. c4 {[%clk 0:03:01.4]}
2... e6 {[%clk 0:03:00.6]} 3. Nc3 {[%clk 0:03:01.9]} 3... Bb4 {[%clk 0:03:01.1]}
4. e3 {[%clk 0:02:59.1]} 4... O-O {[%clk 0:03:00.3]} 5. Bd3 {[%clk 0:02:59.5]}
5... d5 {[%clk 0:03:00.9]} 6. a3 {[%clk 0:02:59.9]} 6... Bxc3+ {[%clk 0:03:01]}
7. bxc3 {[%clk 0:03:00.8]} 7... dxc4 {[%clk 0:03:00.8]} 8. Bxc4 {[%clk
0:03:01.7]} 8... c5 {[%clk 0:03:01.3]} 9. Ne2 {[%clk 0:03:02.2]} 9... Qc7 {[%clk
0:02:58.5]} 10. Bd3 {[%clk 0:03:02.6]} 10... Nc6 {[%clk 0:02:58.2]} 11. O-O
{[%clk 0:03:02]} 11... e5 {[%clk 0:02:57.2]} 12. Ng3 {[%clk 0:02:56]} 12... Rd8
{[%clk 0:02:52.4]} 13. f4 {[%clk 0:02:54.7]} 13... exd4 {[%clk 0:02:49.9]} 14.
cxd4 {[%clk 0:02:55.6]} 14... h6 {[%clk 0:02:17.4]} 15. dxc5 {[%clk 0:02:10]}
15... b6 {[%clk 0:02:15.3]} 16. Qe2 {[%clk 0:02:07.2]} 16... bxc5 {[%clk
0:02:13.1]} 17. Bb2 {[%clk 0:02:06.6]} 17... Qe7 {[%clk 0:02:07.5]} 18. h3
{[%clk 0:01:41.9]} 18... Be6 {[%clk 0:01:59.3]} 19. Rac1 {[%clk 0:01:38.6]}
19... Rac8 {[%clk 0:01:46]} 20. Bxf6 {[%clk 0:01:31.3]} 20... Qxf6 {[%clk
0:01:46]} 21. Ne4 {[%clk 0:01:31.6]} 21... Qe7 {[%clk 0:01:41.2]} 22. Nxc5
{[%clk 0:01:27.3]} 22... Bd5 {[%clk 0:01:37.7]} 23. Rc3 {[%clk 0:00:32.6]} 23...
Rc7 {[%clk 0:01:16.4]} 24. Rfc1 {[%clk 0:00:32.7]} 24... Rdc8 {[%clk 0:01:14.1]}
25. Ba6 {[%clk 0:00:20.9]} 25... Rb8 {[%clk 0:01:12.8]} 26. e4 {[%clk
0:00:19.3]} 26... Nd4 {[%clk 0:00:43.2]} 27. Qe3 {[%clk 0:00:13.9]} 27... Nb3
{[%clk 0:00:21.2]} 28. Nxb3 {[%clk 0:00:10.3]} 28... Rxb3 {[%clk 0:00:21.5]} 29.
Rxc7 {[%clk 0:00:06.2]} 29... Qxc7 {[%clk 0:00:19.7]} 30. Rxc7 {[%clk
0:00:07.1]} 1-0